fUST/lending_fUST_20241012
["ID","MTS","AMOUNT","RATE_DAILY","PERIOD"]
[340157879,1728705041097,-1000.0,0.00054109,14]
[340157880,1728705041108,-1000.0,0.00054113,14]
[340157881,1728705041119,-1109.46521065,0.00054118,14]
[340157882,1728705041128,-1000.0,0.00054134,14]
[340157883,1728705041138,-4595.85987542,0.00054143,120]
[340157884,1728705041149,-1000.0,0.00054147,14]
[340157885,1728705041162,-1000.0,0.00054154,14]
[340157886,1728705041174,-1000.0,0.00054164,14]
[340157887,1728705041185,-1016.30727901,0.00054173,14]
[340157888,1728705041196,-6565.45482836,0.00054177,120]
[340157889,1728705041206,-1000.0,0.00054245,14]
[340157890,1728705041217,-220585.22411304,0.00054246,2]
[340157891,1728705041228,-153.604526,0.00054246,120]
[340157892,1728705041238,-151.0,0.00054246,120]
[340157893,1728705041253,-152.998486,0.00054246,120]
[340157894,1728705041265,-152.617656,0.00054246,30]
[340157895,1728705041275,-151.0,0.00054246,120]
[340157896,1728705041287,-155.157266,0.00054246,120]
[340157897,1728705041298,-151.0,0.00054246,3]
[340157898,1728705041308,-151.0,0.00054246,120]
[340157899,1728705041318,-151.0,0.00054246,120]
[340157900,1728705041328,-151.0,0.00054246,120]
[340157901,1728705041339,-151.0,0.00054246,120]
[340157902,1728705041348,-197.997142,0.00054246,120]
[340157903,1728705041358,-197.997142,0.00054246,120]
[340157904,1728705041367,-207.048877,0.00054246,120]
[340157905,1728705041377,-151.0,0.00054246,120]
[340157906,1728705041387,-2000.0,0.00054246,120]
[340157907,1728705041396,-1915.73857994,0.00054246,120]
[340157908,1728705041406,-207.66918,0.00054246,120]
[340157909,1728705041416,-169.105334,0.00054246,120]
[340157910,1728705041425,-206.321065,0.00054246,60]
[340157911,1728705041434,-678.674147,0.00054246,30]
[340157912,1728705041444,-678.674147,0.00054246,30]
[340157913,1728705041453,-1000.0,0.00054246,14]
[340157914,1728705041462,-151.0,0.00054246,120]
[340157915,1728705041473,-1000.0,0.00054263,14]
[340157916,1728705041482,-1000.0,0.00054277,14]
[340157917,1728705041491,-6565.45482836,0.00054278,120]
[340157918,1728705041501,-1000.0,0.00054281,14]
[340157919,1728705041511,-1000.0,0.00054298,14]
[340157920,1728705041522,-1000.0,0.00054298,14]
[340157921,1728705041532,-1000.0,0.00054303,14]
[340157922,1728705041541,-1000.0,0.00054312,14]
[340157923,1728705041551,-1000.0,0.00054342,14]
[340157924,1728705041561,-1000.0,0.00054358,14]
[340157925,1728705041571,-7094.6034642,0.0005436,23]
[340157926,1728705041580,-340.0,0.00054376,2]
[340157927,1728705041590,-241.183625,0.000545,13]
[340157928,1728705041599,-6565.45482836,0.00054577,120]
[340157929,1728705041609,-937728.72861628,0.000546,120]
[340157930,1728705041620,-207.572445,0.000546,120]
[340157931,1728705041630,-151.0,0.000546,120]
[340157932,1728705041641,-152.992245,0.000546,3]
[340157933,1728705041651,-154.389024,0.000546,120]
[340157934,1728705041661,-192.03691,0.000546,120]
[340157935,1728705041670,-151.0,0.000546,120]
[340157936,1728705041680,-151.0,0.000546,120]
[340157937,1728705041691,-197.997142,0.000546,120]
[340157938,1728705041700,-197.997142,0.000546,120]
[340157939,1728705041710,-151.0,0.000546,120]
[340157940,1728705041719,-678.674147,0.000546,30]
[340157941,1728705041729,-678.674147,0.000546,30]
[340157942,1728705041739,-151.0,0.000546,120]
[340157943,1728705041749,-153.0,0.00054646,120]
[340157944,1728705041759,-153.0,0.00054646,120]
[340157945,1728705041769,-22516.1982835,0.000547,30]
[340157946,1728705041779,-150.112233,0.000547,16]
[340157947,1728705041788,-150.83644,0.000547,2]
[340157948,1728705041798,-91677.18028844,0.00054789,2]
[340157949,1728705041808,-253.74480267,0.0005479,120]
[340157950,1728705041819,-498.34442963,0.00054793,120]
[340157951,1728705041828,-9753.7313406,0.00054793,120]
[340157952,1728705041839,-255.54426213,0.00054794,120]
[340157953,1728705041849,-500.0,0.00054794,120]
[340157954,1728705041858,-500.0,0.00054794,120]
[340157955,1728705041869,-512.38433396,0.00054794,120]
[340157956,1728705041944,-508.42972042,0.00054794,120]
[340157957,1728705041956,-500.0,0.00054794,120]
[340157958,1728705041967,-606.48741885,0.00054794,120]
[340157959,1728705041978,-503.29696498,0.00054794,120]
[340157960,1728705041989,-262.51891137,0.00054794,120]
[340157961,1728705041999,-506.97366875,0.00054794,120]
[340157962,1728705042010,-616.05617209,0.00054794,120]
[340157963,1728705042021,-500.0,0.00054794,2]
[340157964,1728705042031,-500.0,0.00054794,2]
[340157965,1728705042043,-500.0,0.00054794,2]
[340157966,1728705042054,-419.84657099,0.00054794,2]
[340157967,1728705042065,-507.67723755,0.00054794,120]
[340157968,1728705042075,-500.0,0.00054794,120]
[340157969,1728705042086,-591.7864094,0.00054794,120]
[340157970,1728705042096,-517.09829962,0.00054794,120]
[340157971,1728705042107,-507.1638327,0.00054794,120]
[340157972,1728705042119,-525.51678859,0.00054794,120]
[340157973,1728705042130,-501.98544627,0.00054794,120]
[340157974,1728705042145,-500.0,0.00054794,120]
[340157975,1728705042158,-342.99978094,0.00054794,120]
[340157976,1728705042169,-500.0,0.00054794,120]
[340157977,1728705042179,-500.0,0.00054794,120]
[340157979,1728705042190,-570.10433367,0.00054794,120]
[340157980,1728705042199,-502.81215394,0.00054794,120]
[340157981,1728705042211,-517.16984512,0.00054794,120]
[340157982,1728705042220,-500.0,0.00054794,120]
[340157983,1728705042229,-500.0,0.00054794,120]
[340157984,1728705042236,-511.78635693,0.00054794,120]
[340157985,1728705042249,-541.29939735,0.00054794,120]
[340157986,1728705042258,-896.95582669,0.00054794,120]
[340157987,1728705042268,-560.03704833,0.00054794,120]
[340157988,1728705042278,-504.50870299,0.00054794,2]
[340157989,1728705042286,-505.62950509,0.00054794,120]
[340157991,1728705042295,-151.0,0.00054794,120]
[340157992,1728705042305,-502.2852889,0.00054794,120]
[340157993,1728705042316,-511.98155719,0.00054794,120]
[340157994,1728705042328,-500.0,0.00054794,120]
[340157995,1728705042339,-1000.0,0.00054794,120]
[340157996,1728705042348,-353.03861776,0.00054794,120]
[340157997,1728705042357,-512.96479197,0.00054794,120]
[340157998,1728705042366,-503.70184042,0.00054794,7]
[340157999,1728705042375,-510.85165563,0.00054794,120]
[340158001,1728705042387,-500.0,0.00054794,120]
[340158003,1728705042398,-500.53015242,0.00054794,2]
[340158005,1728705042408,-522.69461151,0.00054794,120]
[340158006,1728705042418,-564.79148511,0.00054794,120]
[340158007,1728705042429,-504.75619219,0.00054794,120]
[340158008,1728705042438,-505.19009135,0.00054794,120]
[340158009,1728705042447,-502.20084856,0.00054794,120]
[340158010,1728705042458,-512.74402903,0.00054794,120]
[340158011,1728705042467,-159.40552422,0.00054794,120]
[340158013,1728705042478,-604.47908737,0.00054794,120]
[340158014,1728705042487,-505.18026191,0.00054794,120]
[340158016,1728705042498,-151.0,0.00054794,120]
[340158017,1728705042509,-163.71098432,0.00054794,120]
[340158018,1728705042519,-509.63252097,0.00054794,120]
[340158019,1728705042529,-500.0,0.00054794,120]
[340158020,1728705042539,-505.46389215,0.00054794,120]
[340158021,1728705042548,-536.91793155,0.00054794,120]
[340158022,1728705042558,-620.01692249,0.00054794,120]
[340158023,1728705042567,-500.0,0.00054794,120]
[340158024,1728705042577,-500.0,0.00054794,120]
[340158025,1728705042586,-517.62677717,0.00054794,120]
[340158026,1728705042596,-520.2421573,0.00054794,120]
[340158027,1728705042606,-508.40838138,0.00054794,120]
[340158028,1728705042616,-151.0,0.00054794,120]
[340158029,1728705042626,-197.997142,0.00054794,120]
[340158030,1728705042635,-501.2960978,0.00054794,120]
[340158031,1728705042645,-197.997142,0.00054794,120]
[340158032,1728705042656,-508.77693514,0.00054794,120]
[340158033,1728705042666,-540.05887133,0.00054794,120]
[340158034,1728705042677,-588.10230539,0.00054794,120]
[340158035,1728705042687,-506.89527578,0.00054794,120]
[340158036,1728705042698,-531.31945478,0.00054794,120]
[340158037,1728705042708,-500.0,0.00054794,120]
[340158038,1728705042718,-500.0,0.00054794,120]
[340158039,1728705042727,-500.0,0.00054794,120]
[340158040,1728705042736,-500.0,0.00054794,120]
[340158041,1728705042747,-500.0,0.00054794,120]
[340158042,1728705042756,-500.0,0.00054794,120]
[340158043,1728705042766,-500.0,0.00054794,120]
[340158044,1728705042776,-500.0,0.00054794,120]
[340158045,1728705042787,-500.0,0.00054794,120]
[340158046,1728705042799,-500.0,0.00054794,120]
[340158047,1728705042809,-500.0,0.00054794,120]
[340158048,1728705042819,-500.0,0.00054794,120]
[340158050,1728705042831,-500.0,0.00054794,120]
[340158051,1728705042842,-500.0,0.00054794,120]
[340158052,1728705042853,-500.0,0.00054794,120]
[340158053,1728705042864,-500.0,0.00054794,120]
[340158054,1728705042875,-500.0,0.00054794,120]
[340158055,1728705042884,-500.0,0.00054794,120]
[340158056,1728705042899,-395.33728993,0.00054794,120]
[340158057,1728705042909,-151.0,0.00054794,120]
[340158058,1728705042930,-631.87488063,0.00054794,120]
[340158059,1728705042942,-522.85827017,0.00054794,120]
[340158060,1728705042952,-500.0,0.00054794,120]
[340158061,1728705042963,-500.0,0.00054794,120]
[340158062,1728705042974,-155.41723629,0.00054794,120]
[340158063,1728705042984,-500.0,0.00054794,120]
[340158064,1728705042994,-522.92497424,0.00054794,120]
[340158065,1728705043006,-500.0,0.00054794,120]
[340158066,1728705043016,-500.0,0.00054794,120]
[340158067,1728705043027,-558.22794678,0.00054794,120]
[340158068,1728705043038,-209.69484128,0.00054794,120]
[340158069,1728705043049,-330.4654236,0.00054794,120]
[340158070,1728705043059,-526.19696326,0.00054794,120]
[340158071,1728705043071,-218.71987994,0.00054794,120]
[340158072,1728705043081,-510.62468357,0.00054794,30]
[340158073,1728705043092,-577.05138359,0.00054794,120]
[340158074,1728705043104,-512.87132078,0.00054794,120]
[340158075,1728705043115,-500.0,0.00054794,120]
[340158076,1728705043124,-500.0,0.00054794,120]
[340158078,1728705043134,-508.25186105,0.00054794,120]
[340158079,1728705043145,-2495.38,0.00054794,120]
[340158081,1728705043155,-508.60284954,0.00054794,120]
[340158083,1728705043167,-515.22537819,0.00054794,120]
[340158084,1728705043177,-504.04323464,0.00054794,120]
[340158086,1728705043186,-525.63803116,0.00054794,120]
[340158088,1728705043196,-504.0161206,0.00054794,120]
[340158089,1728705043207,-213.71716719,0.00054794,120]
[340158091,1728705043217,-513.3425849,0.00054794,120]
[340158092,1728705043228,-176.39995046,0.00054794,120]
[340158093,1728705043239,-500.0,0.00054794,2]
[340158094,1728705043252,-500.0,0.00054794,2]
[340158095,1728705043262,-500.0,0.00054794,2]
[340158096,1728705043272,-476.91729491,0.00054794,2]
[340158097,1728705043281,-500.0,0.00054794,30]
[340158098,1728705043291,-1277.1,0.00054794,120]
[340158099,1728705043300,-536.77705997,0.00054794,120]
[340158100,1728705043309,-514.16953692,0.00054794,120]
[340158101,1728705043318,-511.90337299,0.00054794,120]
[340158102,1728705043329,-514.59920701,0.00054794,7]
[340158103,1728705043338,-526.97189405,0.00054794,120]
[340158104,1728705043347,-500.0,0.00054794,120]
[340158105,1728705043356,-514.7596228,0.00054794,120]
[340158106,1728705043366,-303.64236383,0.00054794,120]
[340158107,1728705043375,-678.674147,0.00054794,30]
[340158108,1728705043384,-678.674147,0.00054794,30]
[340158109,1728705043394,-522.96890023,0.00054794,120]
[340158110,1728705043403,-490.83363589,0.00054794,120]
[340158111,1728705043413,-501.25238217,0.00054794,120]
[340158112,1728705043423,-535.81223794,0.00054794,120]
[340158113,1728705043432,-632.29700269,0.00054794,120]
[340158114,1728705043441,-501.38509926,0.00054794,2]
[340158115,1728705043450,-500.0,0.00054794,120]
[340158116,1728705043459,-174.21987614,0.00054794,120]
[340158117,1728705043469,-151.0,0.00054794,120]
[340158118,1728705043478,-500.0,0.00054794,30]
[340158119,1728705043487,-38395.31,0.00054794,18]
[340158120,1728705043496,-500.0,0.00054794,120]
[340158121,1728705043506,-500.0,0.00054794,120]
[340158122,1728705043518,-409.10858085,0.00054794,120]
[340158123,1728705043529,-1916.65,0.00054794,2]
[340158124,1728705043540,-645.76048647,0.00054794,120]
[340158125,1728705043551,-300.0,0.00054794,120]
[340158126,1728705043562,-636.45234818,0.00054794,120]
[340158127,1728705043573,-520.03799,0.00054794,120]
[340158128,1728705043584,-2000.0,0.00054794,120]
[340158129,1728705043596,-500.0,0.00054794,120]
[340158130,1728705043607,-511.47188289,0.00054794,120]
[340158131,1728705043618,-500.0,0.00054794,120]
[340158132,1728705043627,-1250.0,0.00054794,120]
[340158133,1728705043639,-152.58027912,0.00054794,2]
[340158134,1728705043648,-541.87741005,0.00054794,120]
[340158135,1728705043658,-500.50786592,0.00054794,2]
[340158136,1728705043671,-171.98596227,0.00054794,120]
[340158137,1728705043683,-197.018815,0.00054795,120]
[340158138,1728705043693,-150.112233,0.000549,13]
[340158139,1728705043703,-498.26766816,0.00055,120]
[340158140,1728705043713,-1003.46466368,0.00055,2]
[340158141,1728705043722,-227.94984025,0.00055,120]
[340158142,1728705043732,-150.01285019,0.00055059,15]
[340158143,1728705043741,-304.59208863,0.00055059,15]
[340158144,1728705043751,-500.0,0.00055068,120]
[340158145,1728705043760,-500.0,0.00055068,120]
[340158146,1728705043770,-500.0,0.00055068,120]
[340158147,1728705043780,-500.0,0.00055068,120]
[340158148,1728705043792,-500.0,0.00055068,120]
[340158149,1728705043802,-500.30108822,0.00055068,120]
[340158150,1728705043813,-499.99984923,0.00055068,120]
[340158151,1728705043823,-500.0,0.00055068,120]
[340158152,1728705043833,-309.83893974,0.00055068,120]
[340158153,1728705043843,-1000.0,0.00055068,120]
[340158154,1728705043853,-159.60788048,0.00055068,120]
[340158155,1728705043865,-505.22459969,0.00055068,120]
[340158156,1728705043875,-500.0,0.00055068,120]
[340158157,1728705043887,-212.45477652,0.00055068,120]
[340158158,1728705043899,-500.0,0.00055068,120]
[340158159,1728705043909,-500.0,0.00055068,120]
[340158160,1728705043982,-310.87480834,0.00055068,120]
[340158161,1728705043994,-171.80452907,0.00055068,120]
[340158162,1728705044007,-166.37881126,0.00055068,120]
[340158163,1728705044018,-500.0,0.00055068,120]
[340158164,1728705044029,-200.0,0.00055068,120]
[340158165,1728705044039,-2495.38,0.00055068,120]
[340158166,1728705044050,-174.14792394,0.00055068,30]
[340158167,1728705044060,-1277.1,0.00055068,120]
[340158168,1728705044071,-500.0,0.00055068,120]
[340158169,1728705044082,-500.0,0.00055068,120]
[340158170,1728705044092,-514.26073765,0.00055068,30]
[340158171,1728705044103,-38395.31,0.00055068,18]
[340158172,1728705044114,-500.0,0.00055068,120]
[340158173,1728705044125,-303.19165213,0.00055068,120]
[340158174,1728705044136,-1916.65,0.00055068,2]
[340158175,1728705044148,-303.03891574,0.00055068,120]
[340158176,1728705044161,-2000.0,0.00055068,120]
[340158177,1728705044173,-190.54193204,0.00055068,120]
[340158178,1728705044184,-500.0,0.00055068,120]
[340158179,1728705044194,-151.0,0.00055075,120]
[340158180,1728705044205,-6565.45482836,0.00055134,120]
[340158181,1728705044215,-150.0,0.00055143,120]
[340158182,1728705044226,-151.0,0.00055215,120]
[340158183,1728705044236,-197.997142,0.00055215,120]
[340158184,1728705044246,-197.997142,0.00055215,120]
[340158185,1728705044259,-151.0,0.00055215,120]
[340158186,1728705044270,-678.674147,0.00055229,30]
[340158187,1728705044282,-678.674147,0.00055229,30]
[340158188,1728705044293,-500.0,0.00055342,120]
[340158189,1728705044305,-500.0,0.00055342,120]
[340158190,1728705044315,-500.0,0.00055342,120]
[340158191,1728705044330,-546.06488355,0.00055342,120]
[340158192,1728705044341,-500.0,0.00055342,120]
[340158193,1728705044352,-557.96033222,0.00055342,120]
[340158194,1728705044363,-151.0,0.00055342,120]
[340158195,1728705044373,-1000.0,0.00055342,120]
[340158196,1728705044384,-500.0,0.00055342,120]
[340158197,1728705044395,-288.49640379,0.00055342,120]
[340158198,1728705044407,-500.0,0.00055342,120]
[340158199,1728705044417,-154.58376402,0.00055342,120]
[340158200,1728705044427,-2495.38,0.00055342,120]
[340158201,1728705044438,-1277.1,0.00055342,120]
[340158202,1728705044449,-500.0,0.00055342,120]
[340158203,1728705044459,-500.0,0.00055342,120]
[340158204,1728705044471,-160.576429,0.00055342,120]
[340158205,1728705044483,-38395.31,0.00055342,18]
[340158206,1728705044493,-500.0,0.00055342,120]
[340158207,1728705044504,-1916.65,0.00055342,2]
[340158208,1728705044514,-2000.0,0.00055342,120]
[340158209,1728705044525,-411.5062601,0.00055342,120]
[340158210,1728705044535,-7094.6034642,0.0005536,24]
[340158211,1728705044546,-335.86587177,0.0005544,2]
[340158212,1728705044555,-6565.45482836,0.00055524,120]
[340158213,1728705044565,-500.0,0.00055616,120]
[340158214,1728705044577,-500.0,0.00055616,120]
[340158215,1728705044589,-501.54700055,0.00055616,120]
[340158216,1728705044598,-500.0,0.00055616,120]
[340158217,1728705044611,-1000.0,0.00055616,120]
[340158218,1728705044621,-500.0,0.00055616,120]
[340158219,1728705044630,-500.0,0.00055616,120]
[340158220,1728705044642,-2495.38,0.00055616,120]
[340158221,1728705044652,-1277.1,0.00055616,120]
[340158222,1728705044664,-500.0,0.00055616,120]
[340158223,1728705044674,-500.0,0.00055616,120]
[340158224,1728705044684,-38395.31,0.00055616,18]
[340158225,1728705044694,-500.0,0.00055616,120]
[340158226,1728705044706,-1916.65,0.00055616,2]
[340158227,1728705044718,-2000.0,0.00055616,120]
[340158228,1728705044728,-656.1288325,0.00055664,2]
[340158229,1728705044738,-6565.45482836,0.00055704,120]
[340158230,1728705044749,-500.0,0.0005589,120]
[340158231,1728705044760,-500.0,0.0005589,120]
[340158232,1728705044771,-500.0,0.0005589,120]
[340158233,1728705044783,-151.0,0.0005589,120]
[340158234,1728705044793,-1000.0,0.0005589,120]
[340158235,1728705044804,-256.592136,0.0005589,120]
[340158236,1728705044815,-500.0,0.0005589,120]
[340158237,1728705044827,-151.0,0.0005589,120]
[340158238,1728705044839,-197.997142,0.0005589,120]
[340158239,1728705044851,-197.997142,0.0005589,120]
[340158240,1728705044861,-151.0,0.0005589,120]
[340158241,1728705044873,-500.0,0.0005589,120]
[340158242,1728705044884,-2495.38,0.0005589,120]
[340158243,1728705044894,-1277.1,0.0005589,120]
[340158244,1728705044904,-500.0,0.0005589,120]
[340158245,1728705044916,-678.674147,0.0005589,30]
[340158246,1728705044927,-678.674147,0.0005589,30]
[340158247,1728705044939,-500.0,0.0005589,120]
[340158248,1728705044951,-38395.31,0.0005589,18]
[340158249,1728705044965,-500.0,0.0005589,120]
[340158250,1728705044980,-1916.65,0.0005589,2]
[340158251,1728705044996,-2000.0,0.0005589,120]
[340158252,1728705045013,-1914.41,0.000559,30]
[340158253,1728705045027,-6565.4548284,0.0005593,120]
[340158254,1728705045041,-161.60378812,0.00055999,90]
[340158255,1728705045054,-499999.999999,0.00056,120]
[340158256,1728705045067,-151.0,0.00056,120]
[340158257,1728705045079,-151.0,0.00056,120]
[340158258,1728705045094,-197.997142,0.00056,120]
[340158259,1728705045109,-197.997142,0.00056,120]
[340158260,1728705045123,-151.0,0.00056,120]
[340158261,1728705045138,-100000.0,0.00056,120]
[340158262,1728705045153,-678.674147,0.00056,30]
[340158263,1728705045166,-678.674147,0.00056,30]
[340158264,1728705045180,-151.0,0.00056096,120]
[340158265,1728705045194,-238.0,0.00056096,120]
[340158266,1728705045208,-163.0,0.00056096,120]
[340158267,1728705045222,-500.0,0.00056164,120]
[340158268,1728705045237,-500.0,0.00056164,120]
[340158269,1728705045252,-500.0,0.00056164,120]
[340158270,1728705045266,-1000.0,0.00056164,120]
[340158271,1728705045279,-504.30665876,0.00056164,120]
[340158272,1728705045293,-506.1952522,0.00056164,120]
[340158273,1728705045309,-2495.38,0.00056164,120]
[340158274,1728705045321,-1277.1,0.00056164,120]
[340158275,1728705045334,-500.0,0.00056164,120]
[340158276,1728705045346,-495.89260252,0.00056164,120]
[340158277,1728705045357,-38395.31,0.00056164,18]
[340158278,1728705045371,-527.13004235,0.00056164,120]
[340158279,1728705045386,-1916.65,0.00056164,2]
[340158280,1728705045399,-2000.0,0.00056164,120]
[340158281,1728705045415,-2500.0,0.00056164,120]
[340158282,1728705045430,-7094.6034642,0.0005636,26]
[340158283,1728705045443,-678.674147,0.0005636,30]
[340158284,1728705045457,-678.674147,0.0005636,30]
[340158285,1728705045469,-4595.85987542,0.00056395,120]
[340158286,1728705045481,-603.29661668,0.00056438,120]
[340158287,1728705045492,-500.0,0.00056438,120]
[340158288,1728705045503,-500.0,0.00056438,120]
[340158290,1728705045515,-1000.0,0.00056438,120]
[340158292,1728705045526,-2495.38,0.00056438,120]
[340158293,1728705045538,-1277.1,0.00056438,120]
[340158294,1728705045551,-500.0,0.00056438,120]
[340158295,1728705045565,-38395.31,0.00056438,18]
[340158296,1728705045578,-1916.65,0.00056438,2]
[340158297,1728705045589,-2000.0,0.00056438,120]
[340158298,1728705045599,-566042.98726436,0.000566,120]
[340158299,1728705045612,-151.0,0.000566,120]
[340158300,1728705045623,-151.0,0.000566,120]
[340158301,1728705045634,-197.997142,0.000566,120]
[340158302,1728705045648,-197.997142,0.000566,120]
[340158303,1728705045660,-151.0,0.000566,120]
[340158304,1728705045671,-678.674147,0.000566,30]
[340158305,1728705045682,-678.674155,0.000566,30]
[340158306,1728705045693,-500.0,0.00056712,120]
[340158307,1728705045703,-500.0,0.00056712,120]
[340158308,1728705045714,-1000.0,0.00056712,120]
[340158309,1728705045724,-2495.38,0.00056712,120]
[340158310,1728705045735,-1277.1,0.00056712,120]
[340158311,1728705045746,-500.0,0.00056712,120]
[340158312,1728705045757,-38395.31,0.00056712,18]
[340158313,1728705045768,-1916.65,0.00056712,2]
[340158314,1728705045779,-2000.0,0.00056712,120]
[340158315,1728705045790,-500.0,0.00056986,120]
[340158316,1728705045801,-500.0,0.00056986,120]
[340158317,1728705045812,-1000.0,0.00056986,120]
[340158318,1728705045823,-2495.38,0.00056986,120]
[340158319,1728705045834,-1277.1,0.00056986,120]
[340158320,1728705045845,-500.0,0.00056986,120]
[340158321,1728705045856,-38395.31,0.00056986,18]
[340158322,1728705045867,-1916.65,0.00056986,2]
[340158323,1728705045877,-534.68493259,0.00056986,120]
[340158324,1728705045889,-605.04,0.00057,120]
[340158326,1728705045899,-500.0,0.0005726,120]
[340158328,1728705045910,-500.0,0.0005726,120]
[340158330,1728705045921,-1000.0,0.0005726,120]
[340158332,1728705045932,-2495.38,0.0005726,120]
[340158334,1728705045943,-1277.1,0.0005726,120]
[340158336,1728705045954,-500.0,0.0005726,120]
[340158338,1728705045964,-38395.31,0.0005726,18]
[340158340,1728705045975,-1916.65,0.0005726,2]
[340158341,1728705045986,-656.1288325,0.00057298,2]
[340158342,1728705045996,-276.958897,0.00057322,120]
[340158343,1728705046007,-1000.0,0.0005733,30]
[340158344,1728705046018,-208.127196,0.00057347,120]
[340158345,1728705046029,-197.997142,0.00057347,120]
[340158346,1728705046126,-197.997135,0.00057347,120]
[340158347,1728705046138,-151.0,0.00057347,120]
[340158348,1728705046148,-14189.2069284,0.0005736,27]
[340158349,1728705046159,-1000.0,0.00057383,30]
[340158350,1728705046169,-1000.0,0.00057447,30]
[340158351,1728705046179,-1000.0,0.00057455,30]
[340158352,1728705046188,-1000.0,0.00057472,30]
[340158353,1728705046198,-1000.0,0.00057482,30]
[340158354,1728705046207,-444336.88570974,0.000575,35]
[340158355,1728705046217,-839379.49274724,0.000575,35]
[340158356,1728705046226,-500.0,0.00057534,120]
[340158357,1728705046235,-500.0,0.00057534,120]
[340158358,1728705046244,-1000.0,0.00057534,120]
[340158359,1728705046257,-500.0,0.00057534,120]
[340158360,1728705046266,-500.0,0.00057534,120]
[340158361,1728705046275,-500.0,0.00057534,120]
[340158362,1728705046285,-500.0,0.00057534,120]
[340158363,1728705046295,-500.0,0.00057534,120]
[340158364,1728705046304,-500.0,0.00057534,120]
[340158365,1728705046328,-500.0,0.00057534,120]
[340158366,1728705046337,-500.0,0.00057534,120]
[340158367,1728705046347,-500.0,0.00057534,120]
[340158368,1728705046355,-500.0,0.00057534,120]
[340158369,1728705046365,-500.0,0.00057534,120]
[340158370,1728705046374,-2495.38,0.00057534,120]
[340158371,1728705046384,-586.06,0.00057534,120]
[340158372,1728705046393,-586.06,0.00057534,120]
[340158373,1728705046403,-586.06,0.00057534,120]
[340158374,1728705046413,-586.06,0.00057534,120]
[340158375,1728705046422,-586.06,0.00057534,120]
[340158376,1728705046431,-586.06,0.00057534,120]
[340158377,1728705046441,-586.06,0.00057534,120]
[340158378,1728705046451,-586.06,0.00057534,120]
[340158379,1728705046461,-586.06,0.00057534,120]
[340158380,1728705046471,-586.06,0.00057534,120]
[340158381,1728705046480,-586.06,0.00057534,120]
[340158382,1728705046489,-1277.1,0.00057534,120]
[340158383,1728705046499,-500.0,0.00057534,120]
[340158384,1728705046508,-38395.31,0.00057534,18]
[340158385,1728705046518,-1916.65,0.00057534,2]
[340158386,1728705046527,-2743.42216874,0.00057534,120]
[340158387,1728705046537,-1000.0,0.00057544,30]
[340158388,1728705046547,-1000.0,0.00057549,30]
[340158389,1728705046556,-200.0,0.0005757,77]
[340158390,1728705046566,-1000.0,0.00057611,30]
[340158391,1728705046575,-1000.0,0.00057612,30]
[340158392,1728705046585,-1000.0,0.00057621,30]
[340158393,1728705046594,-1000.0,0.00057678,30]
[340158394,1728705046603,-1000.0,0.00057724,30]
[340158395,1728705046615,-1000.0,0.0005778,30]
[340158396,1728705046624,-300.0,0.000578,32]
[340158397,1728705046634,-150.254261,0.000578,2]
[340158398,1728705046647,-500.0,0.00057808,120]
[340158399,1728705046658,-500.0,0.00057808,120]
[340158400,1728705046669,-1000.0,0.00057808,120]
[340158401,1728705046680,-500.0,0.00057808,120]
[340158402,1728705046691,-2495.38,0.00057808,120]